bitfinex/quotes_BTCUSD_20240719
["timestamp","ask_amount","ask_price","bid_price","bid_amount"]
[1721419984714,0.05,67050.0,67043.0,0.000924]
[1721419984914,0.001,67044.0,67043.0,0.027924]
[1721419985136,0.05,67050.0,67043.0,0.1165863]
[1721419985344,0.05,67050.0,67043.0,0.013924]
[1721419985762,0.0665,67052.0,67045.0,0.298302]
[1721419985944,0.0665,67052.0,67049.0,0.014]
[1721419986380,0.05,67056.0,67049.0,0.014]
[1721419986604,0.05,67056.0,67049.0,0.028]
[1721419986962,0.1451,67058.0,67050.0,0.15438174]
[1721419986963,0.0631,67058.0,67050.0,0.15438174]
[1721419987174,0.1421,67063.0,67051.0,0.10301885]
[1721419987375,0.11845865,67062.0,67054.0,0.149132]
[1721419987583,0.11845865,67062.0,67061.0,0.149117]
[1721419988223,0.11864845,67062.0,67061.0,0.149117]
[1721419988442,0.1164,67068.0,67061.0,0.149117]
[1721419988443,0.11864845,67067.0,67061.0,0.149117]
[1721419988643,0.11864845,67066.0,67059.0,0.447361]
[1721419988958,0.11864845,67065.0,67060.0,0.149119]
[1721419989089,0.11864845,67064.0,67059.0,0.15438174]
[1721419989290,0.11864845,67063.0,67061.0,0.01347688]
[1721419989470,0.1164,67068.0,67061.0,0.01]
[1721419989675,0.0094372,67071.0,67061.0,0.01347688]
[1721419989676,0.128,67062.0,67061.0,0.01347688]
[1721419989896,0.31310053,67062.0,67061.0,0.01]
[1721419990832,0.31310053,67062.0,67061.0,0.018]
[1721419991037,0.26310053,67062.0,67061.0,0.018]
[1721419991235,0.26310053,67062.0,67061.0,0.008]
[1721419991439,0.18510053,67062.0,67061.0,0.008]
[1721419991684,0.18510053,67062.0,67061.0,0.003]
[1721419991685,0.11890053,67062.0,67061.0,0.003]
[1721419991889,0.11890053,67062.0,67061.0,0.50565807]
[1721419992299,0.31710053,67062.0,67061.0,0.02276807]
[1721419992501,0.46621553,67062.0,67061.0,0.02276807]
[1721419992708,0.31641282,67062.0,67061.0,0.01647688]
[1721419992877,0.31641282,67062.0,67061.0,0.00347688]
[1721419993107,0.31641282,67062.0,67061.0,0.02147688]
[1721419993316,0.40971559,67062.0,67061.0,0.02147688]
[1721419993679,0.31472497,67062.0,67061.0,0.02947688]
[1721419994299,0.4080269,67062.0,67061.0,0.01947688]
[1721419994704,0.4080269,67062.0,67061.0,0.02947688]
[1721419995863,0.40859045,67062.0,67061.0,0.02947688]
[1721419999014,0.40866916,67062.0,67061.0,0.02947688]
[1721419999600,0.85601516,67062.0,67061.0,0.02947688]
[1721419999802,1.15424616,67062.0,67061.0,0.02947688]
[1721420000384,1.45247716,67062.0,67061.0,0.02947688]
[1721420000589,1.64551251,67062.0,67061.0,0.02947688]
[1721420000757,1.64551251,67062.0,67061.0,1.64e-06]
[1721420000758,1.65115298,67062.0,67061.0,1.64e-06]
[1721420001010,1.71397868,67062.0,67061.0,1.64e-06]
[1721420001183,1.86836042,67062.0,67061.0,1.64e-06]
[1721420001412,1.77964135,67062.0,67061.0,1.64e-06]
[1721420001542,0.064,67051.0,67043.0,0.000924]
[1721420001740,0.21215701,67050.0,67044.0,0.15434957]
[1721420001947,0.11885508,67049.0,67044.0,0.15434957]
[1721420002146,0.11885508,67048.0,67045.0,0.14231736]
[1721420003135,0.11885508,67048.0,67043.0,0.000924]
[1721420003136,0.11878262,67048.0,67043.0,0.000924]
[1721420003323,0.001,67048.0,67045.0,0.008]
[1721420003671,0.00025071,67048.0,67045.0,0.008]
[1721420004079,0.05,67050.0,67043.0,0.000924]
[1721420004521,0.001,67049.0,67044.0,0.014]
[1721420005022,0.001,67049.0,67044.0,0.774]
[1721420005231,0.001,67049.0,67044.0,0.03591268]
[1721420005370,0.001,67049.0,67044.0,0.014]
[1721420005371,0.001,67048.0,67044.0,0.014]
[1721420005568,0.001,67048.0,67043.0,0.008924]
[1721420005768,0.051,67050.0,67043.0,0.854924]
[1721420005980,0.001,67049.0,67044.0,0.0934924]
[1721420006372,0.05,67044.0,67043.0,0.000924]
[1721420006604,0.560366,67044.0,67043.0,0.000924]
[1721420007042,0.99648043,67044.0,67043.0,0.000924]
[1721420007333,0.653693,67044.0,67043.0,0.000924]
[1721420007534,1.11574305,67044.0,67043.0,0.000924]
[1721420007762,0.76104095,67044.0,67043.0,0.000924]
[1721420008075,1.05935195,67044.0,67043.0,0.000924]
[1721420008294,0.9703487,67044.0,67043.0,0.000924]
[1721420008505,1.0582913,67044.0,67043.0,0.000924]
[1721420008708,1.0592913,67044.0,67043.0,0.009924]
[1721420009124,0.76060663,67044.0,67043.0,0.009924]
[1721420009334,0.75960663,67044.0,67043.0,0.000924]
[1721420009538,0.654693,67044.0,67043.0,0.009924]
[1721420009736,1.02073275,67044.0,67043.0,0.016924]
[1721420009936,0.97097677,67044.0,67043.0,0.009924]
[1721420010168,0.953004,67044.0,67043.0,0.009924]
[1721420010370,0.954004,67044.0,67043.0,0.015924]
[1721420010945,0.96350097,67044.0,67043.0,0.015924]
[1721420011147,1.06988761,67044.0,67043.0,0.015924]
[1721420011490,0.96350097,67044.0,67043.0,0.015924]
[1721420011690,0.98065357,67044.0,67043.0,0.015924]
[1721420012118,1.06958892,67044.0,67043.0,0.015924]
[1721420012322,1.27896457,67044.0,67043.0,0.015924]
[1721420012571,2.22587065,67044.0,67043.0,0.015924]
[1721420012767,2.22587065,67044.0,67028.0,0.4753]
[1721420012768,0.745945,67029.0,67028.0,0.4753]
[1721420012968,0.149198,67025.0,67024.0,0.46304871]
[1721420013183,0.149203,67023.0,67020.0,0.009218]
[1721420013419,0.11531215,67025.0,67020.0,0.009218]
[1721420013420,0.11531215,67022.0,67020.0,0.009218]
[1721420013590,0.11531215,67021.0,67020.0,0.009218]
[1721420013792,0.11531215,67023.0,67020.0,0.009218]
[1721420013993,0.11531215,67022.0,67020.0,0.009218]
[1721420014138,0.199201,67024.0,67020.0,0.009218]
[1721420014337,0.0805,67025.0,67020.0,0.009218]
[1721420014338,0.796032,67021.0,67020.0,0.017218]
[1721420014575,0.497619,67021.0,67020.0,0.017218]
[1721420014775,0.61408555,67021.0,67020.0,0.017218]
[1721420014969,0.31567255,67021.0,67020.0,0.017218]
[1721420015351,0.61408555,67021.0,67020.0,0.017218]
[1721420015492,0.61408555,67021.0,67020.0,0.031218]
[1721420015493,0.31567255,67021.0,67020.0,0.031218]
[1721420015902,0.31567255,67021.0,67020.0,0.023218]
[1721420016097,0.31667255,67021.0,67020.0,0.024218]
[1721420016302,0.200206,67021.0,67020.0,0.024218]
[1721420016475,0.200206,67021.0,67020.0,0.023218]
[1721420016683,0.498619,67021.0,67020.0,0.023218]
[1721420016881,0.051,67021.0,67020.0,0.009218]
[1721420017341,0.052,67021.0,67020.0,0.015218]
[1721420018272,0.002,67021.0,67020.0,0.162118]
[1721420018475,0.002,67021.0,67020.0,0.096118]
[1721420018676,0.002,67021.0,67020.0,0.015218]
[1721420020678,0.001,67021.0,67020.0,0.009218]
[1721420020880,0.002,67021.0,67020.0,0.015218]
[1721420021489,0.05,67026.0,67020.0,0.009218]
[1721420021685,0.05,67026.0,67020.0,0.018218]
[1721420021850,0.001,67021.0,67020.0,0.018218]
[1721420022283,0.05,67026.0,67020.0,0.009218]
[1721420022527,0.001,67021.0,67020.0,0.018218]
[1721420023834,0.05,67026.0,67020.0,0.009218]
[1721420024236,0.05,67026.0,67020.0,0.012218]
[1721420024398,0.05,67026.0,67020.0,0.013218]
[1721420024612,0.05,67026.0,67020.0,0.010218]
[1721420025013,0.001,67021.0,67020.0,0.019218]
[1721420025419,0.05,67026.0,67020.0,0.010218]
[1721420025889,0.05,67026.0,67020.0,0.013218]
[1721420030327,0.11773531,67025.0,67020.0,0.010218]
[1721420030550,0.11773531,67025.0,67020.0,0.013218]
[1721420030761,0.05,67026.0,67020.0,0.013218]
[1721420030762,0.05,67026.0,67020.0,0.012218]
[1721420031225,0.05,67026.0,67020.0,0.010218]
[1721420031448,0.22307479,67025.0,67020.0,0.009218]
[1721420031656,0.11732293,67024.0,67020.0,0.016218]
[1721420031858,0.1459,67025.0,67020.0,0.016218]
[1721420032064,0.11732474,67024.0,67020.0,0.009218]
[1721420032447,0.11732474,67024.0,67020.0,0.010218]
[1721420032688,0.11732474,67024.0,67020.0,0.009218]
[1721420033489,0.11732474,67024.0,67020.0,0.012218]
[1721420033699,0.11630569,67023.0,67020.0,0.012218]
[1721420033933,0.0627,67025.0,67020.0,0.009218]
[1721420034151,0.05,67026.0,67020.0,0.009218]
[1721420034152,0.11630753,67024.0,67022.0,0.1457]
[1721420034354,0.05,67042.0,67028.0,0.298378]
[1721420034559,0.1170407,67041.0,67030.0,0.149186]
[1721420034766,0.1170407,67041.0,67031.0,0.30184769]
[1721420035182,0.1170407,67041.0,67031.0,0.45103169]
[1721420035384,0.1170407,67041.0,67032.0,0.149181]
[1721420035585,0.1170407,67040.0,67033.0,0.36874299]
[1721420035789,0.1170407,67039.0,67033.0,0.21956499]
[1721420035944,0.1170407,67038.0,67033.0,0.21956499]
[1721420036151,0.05,67042.0,67033.0,0.32420402]
[1721420036352,0.11736615,67041.0,67033.0,0.47338402]
[1721420036736,0.11734048,67040.0,67033.0,0.32420402]
[1721420036947,0.1134,67054.0,67044.0,0.149153]
[1721420037215,0.05,67052.0,67045.0,0.0759]
[1721420037416,0.11734356,67051.0,67046.0,0.03772048]
[1721420037626,0.11734356,67050.0,67045.0,0.0759]
[1721420037830,0.05,67053.0,67045.0,0.0759]
[1721420038070,0.1167545,67052.0,67045.0,0.0759]
[1721420038692,0.001,67051.0,67046.0,0.006]
[1721420038911,0.11657612,67050.0,67045.0,0.0759]
[1721420039318,0.11657612,67050.0,67041.0,0.298322]
[1721420039319,0.001,67051.0,67041.0,0.149162]
[1721420039481,0.001,67051.0,67042.0,0.15438174]
[1721420039982,0.05,67049.0,67045.0,0.006]
[1721420040383,0.05,67049.0,67045.0,0.005]
[1721420040790,0.05,67049.0,67042.0,0.008]
[1721420041003,0.05,67049.0,67042.0,0.015]
[1721420041152,0.001,67051.0,67043.0,0.19695964]
[1721420041348,0.1134,67054.0,67044.0,0.149154]
[1721420041554,0.0774,67061.0,67044.0,0.149154]
[1721420041555,0.0657,67061.0,67052.0,0.149137]
[1721420041759,0.0657,67061.0,67053.0,0.15736411]
[1721420041760,0.1159265,67060.0,67053.0,0.15736411]
[1721420041959,0.1159265,67060.0,67053.0,0.19788351]
[1721420042160,0.0657,67061.0,67053.0,0.19788351]
[1721420043443,0.05084,67062.0,67053.0,0.19788351]
[1721420044029,0.004,67060.0,67053.0,0.15438174]
[1721420044236,0.004,67060.0,67053.0,0.15738174]
[1721420044412,0.004,67060.0,67053.0,0.15838174]
[1721420044611,0.004,67060.0,67053.0,0.15538174]
[1721420045050,0.004,67060.0,67053.0,0.15638174]
[1721420045450,0.05084,67062.0,67053.0,0.15836411]
[1721420045656,0.05084,67062.0,67053.0,0.24877152]
[1721420046372,0.05084,67062.0,67053.0,0.24777152]
[1721420046574,0.05084,67062.0,67053.0,0.25177152]
[1721420046805,0.05184,67062.0,67053.0,0.25177152]
[1721420047339,0.05184,67062.0,67053.0,0.24777152]
[1721420047541,0.05184,67062.0,67054.0,0.06951895]
[1721420047752,0.00184,67062.0,67054.0,0.07250132]
[1721420048159,0.00184,67062.0,67059.0,0.149121]
[1721420048365,0.00184,67062.0,67059.0,0.38230274]
[1721420048552,0.00084,67062.0,67060.0,0.15210109]
[1721420048798,0.00084,67062.0,67061.0,0.85022618]
[1721420048944,0.00084,67062.0,67061.0,1.00460792]
[1721420049898,0.00184,67062.0,67061.0,1.00460792]
[1721420050181,0.00084,67062.0,67061.0,0.60173374]
[1721420050533,0.00084,67062.0,67061.0,0.61073374]
[1721420051282,0.00084,67062.0,67061.0,0.62473374]
[1721420051508,0.00084,67062.0,67061.0,0.61573374]
[1721420051862,0.00084,67062.0,67061.0,0.62973374]
[1721420052025,0.00084,67062.0,67061.0,0.78408331]
[1721420052968,0.00084,67062.0,67061.0,0.62973374]
[1721420054031,0.00084,67062.0,67061.0,0.33149874]
[1721420056418,0.00084,67062.0,67061.0,0.18238174]
[1721420062667,0.00084,67062.0,67061.0,0.028]
[1721420062817,0.06294,67062.0,67061.0,0.028]
[1721420063029,0.00084,67062.0,67061.0,0.18238174]
[1721420063249,0.00084,67062.0,67061.0,0.34973691]
[1721420063810,0.00084,67062.0,67061.0,0.33149874]
[1721420064211,0.00084,67062.0,67061.0,0.18238174]
[1721420064658,0.07744,67062.0,67061.0,0.028]
[1721420064862,0.13964,67062.0,67061.0,0.028]
[1721420065199,0.25458359,67062.0,67061.0,0.028]
[1721420066596,0.17798359,67062.0,67061.0,0.028]
[1721420067844,0.17819235,67062.0,67061.0,0.028]
[1721420069332,0.17839257,67062.0,67061.0,0.028]
[1721420070162,0.11619257,67062.0,67061.0,0.0457128]
[1721420070357,0.11619257,67062.0,67061.0,0.18238174]
[1721420071174,0.11717486,67062.0,67061.0,0.18238174]
[1721420073780,0.11717486,67062.0,67061.0,0.41389874]
[1721420073989,0.11717486,67062.0,67061.0,1.11777801]
[1721420074381,0.11735599,67062.0,67061.0,1.41601301]
[1721420074582,0.11735599,67062.0,67061.0,0.62973374]
[1721420075980,0.11735599,67062.0,67061.0,0.18238174]
[1721420076196,0.11735599,67062.0,67061.0,0.33149874]
[1721420076440,0.11735599,67062.0,67061.0,0.32649874]
[1721420077473,0.1179183,67062.0,67061.0,0.32649874]
[1721420078579,0.1179183,67062.0,67061.0,0.36266948]
[1721420078774,0.1179183,67062.0,67061.0,0.95913948]
[1721420079012,0.1179183,67062.0,67061.0,1.03713948]
[1721420080065,0.00084,67062.0,67061.0,2.75387448]
[1721420080447,0.00084,67062.0,67061.0,2.80387448]
[1721420080653,0.00084,67062.0,67061.0,2.75387448]
[1721420080857,0.00084,67062.0,67061.0,2.80387448]
[1721420081085,0.00084,67062.0,67061.0,2.73987448]
[1721420081489,0.00084,67062.0,67061.0,2.75387448]
[1721420081695,0.00084,67062.0,67061.0,2.73087448]
[1721420081894,0.00084,67062.0,67061.0,2.74487448]
[1721420082103,0.00084,67062.0,67061.0,2.75887448]
[1721420082528,0.00084,67062.0,67061.0,2.74487448]
[1721420082780,0.00084,67062.0,67061.0,2.75887448]
[1721420084994,0.00084,67062.0,67061.0,2.80887448]
[1721420085557,0.00084,67062.0,67061.0,2.79487448]
[1721420085952,0.00084,67062.0,67061.0,2.80887448]
[1721420086360,0.00084,67062.0,67061.0,2.79487448]
[1721420086630,0.00084,67062.0,67061.0,2.78987448]
[1721420086943,0.00084,67062.0,67061.0,1.52387448]
[1721420087147,0.00084,67062.0,67061.0,2.22987448]
[1721420087354,0.00084,67062.0,67061.0,2.27987448]
[1721420087568,0.00084,67062.0,67061.0,1.52387448]
[1721420088194,0.00084,67062.0,67061.0,2.32787448]
[1721420089175,0.00084,67062.0,67061.0,1.53787448]
[1721420089969,0.00084,67062.0,67061.0,1.50170374]
[1721420090147,0.00084,67062.0,67061.0,2.23170374]
[1721420090362,0.00084,67062.0,67061.0,2.16620374]
[1721420090748,0.00084,67062.0,67061.0,2.21620374]
[1721420093598,0.00084,67062.0,67061.0,2.51443874]
[1721420093802,0.00084,67062.0,67061.0,2.66878831]
[1721420097103,0.00084,67062.0,67061.0,2.61878831]
[1721420098281,0.00084,67062.0,67061.0,0.042]
[1721420098282,0.06494,67062.0,67061.0,0.042]
[1721420098490,0.14344,67062.0,67061.0,0.042]
[1721420098900,0.2568208,67062.0,67061.0,0.042]
[1721420099316,0.3068208,67062.0,67061.0,0.042]
[1721420100096,0.30714139,67062.0,67061.0,0.042]
[1721420101373,0.30714139,67062.0,67061.0,0.014]
[1721420101574,0.05,67061.0,67050.0,0.249142]
[1721420101795,0.052794,67061.0,67051.0,0.25665564]
[1721420101997,0.05,67061.0,67052.0,0.1]
[1721420102279,0.05,67061.0,67053.0,0.2923199]
[1721420102617,0.06494,67062.0,67057.0,0.298251]
[1721420102926,0.06494,67062.0,67058.0,0.15438174]
[1721420103932,0.06494,67062.0,67059.0,0.149122]
[1721420104141,0.06494,67062.0,67060.0,0.15438174]
[1721420105606,0.06494,67062.0,67060.0,0.16838174]
[1721420105803,0.1982,67061.0,67060.0,0.014]
[1721420106003,0.31164083,67061.0,67060.0,0.014]
[1721420106232,0.31141377,67061.0,67060.0,0.014]
[1721420106964,0.31141377,67061.0,67060.0,0.008]
[1721420107169,0.31141377,67061.0,67050.0,0.1]
[1721420107559,0.31141377,67061.0,67051.0,0.15438174]
[1721420107560,0.11321377,67060.0,67051.0,0.15438174]
[1721420107763,0.11321377,67059.0,67051.0,0.15438174]
[1721420108056,0.11321377,67058.0,67051.0,0.15438174]
[1721420108260,0.1982,67061.0,67051.0,0.15438174]
[1721420108395,0.1129266,67060.0,67052.0,0.03843936]
[1721420108597,0.1129266,67060.0,67053.0,0.15438174]
[1721420109248,0.1129266,67060.0,67050.0,0.109]
[1721420109249,0.144,67052.0,67050.0,0.009]
[1721420109436,0.75446206,67051.0,67050.0,0.009]
[1721420109636,1.05274206,67051.0,67050.0,0.009]
[1721420109810,1.21273982,67051.0,67050.0,0.009]
[1721420110179,0.638826,67050.0,67049.0,0.4753]
[1721420110335,0.84519158,67050.0,67049.0,0.4753]
[1721420110652,1.05015206,67050.0,67049.0,0.4753]
[1721420111583,1.05015206,67050.0,67049.0,0.4883]
[1721420111764,1.05091263,67050.0,67049.0,0.4883]
[1721420111910,1.05091263,67050.0,67049.0,0.5023]
[1721420112989,1.05091263,67050.0,67049.0,0.027]
[1721420114174,0.45434463,67050.0,67049.0,0.027]
[1721420114377,0.1914,67050.0,67049.0,0.027]
[1721420115182,0.340542,67050.0,67049.0,0.027]
[1721420116606,0.1914,67050.0,67049.0,0.027]
[1721420120780,0.19436953,67050.0,67049.0,0.027]
[1721420121182,0.34351153,67050.0,67049.0,0.027]
[1721420122484,0.45617219,67050.0,67049.0,0.027]
[1721420123093,0.75445619,67050.0,67049.0,0.027]
[1721420123534,0.45320266,67050.0,67049.0,0.027]
[1721420123738,0.30406066,67050.0,67049.0,0.027]
[1721420124327,0.30426567,67050.0,67049.0,0.027]
[1721420125281,0.11286567,67050.0,67049.0,0.18138174]
[1721420125445,0.1141,67058.0,67049.0,0.20762991]
[1721420125654,0.1141,67058.0,67050.0,0.15736424]
[1721420125859,0.0641,67058.0,67052.0,0.149137]
[1721420126015,0.0641,67058.0,67053.0,0.149135]
[1721420126535,0.0641,67058.0,67052.0,0.07190274]
[1721420126736,0.14764,67062.0,67053.0,0.15438174]
[1721420126935,0.11279554,67061.0,67055.0,0.14913]
[1721420127143,0.11279554,67061.0,67056.0,0.15438174]
[1721420127542,0.06474,67062.0,67056.0,0.15438174]
[1721420127543,0.11269282,67060.0,67056.0,0.15438174]
[1721420127743,0.11269282,67059.0,67056.0,0.15438174]
[1721420127944,0.06474,67062.0,67057.0,0.09968592]
[1721420127945,0.11269282,67061.0,67057.0,0.09968592]
[1721420128155,0.06474,67062.0,67057.0,0.25406766]
[1721420128156,0.11264879,67060.0,67057.0,0.25406766]
[1721420128366,0.00084,67062.0,67058.0,0.22795001]
[1721420128596,0.11268362,67061.0,67058.0,0.22795001]
[1721420128853,0.11268362,67061.0,67058.0,0.07882701]
[1721420129077,0.11268362,67061.0,67059.0,0.06206728]
[1721420129248,0.11268362,67061.0,67057.0,0.23558174]
[1721420129510,0.00084,67062.0,67057.0,0.38470774]
[1721420129721,0.11265289,67061.0,67057.0,0.38470774]
[1721420129928,0.11265289,67061.0,67057.0,0.49163211]
[1721420130103,0.00084,67062.0,67057.0,0.49163211]
[1721420130439,0.00084,67062.0,67059.0,0.001]
[1721420130665,0.00084,67062.0,67061.0,0.447352]
[1721420130899,0.00084,67062.0,67061.0,0.98557276]
[1721420131092,0.00084,67062.0,67061.0,0.68733776]
[1721420132239,0.00084,67062.0,67061.0,0.60173374]
[1721420132972,0.00084,67062.0,67061.0,0.89996874]
[1721420133151,0.00084,67062.0,67061.0,0.91496874]
[1721420133790,0.00084,67062.0,67061.0,0.90096874]
[1721420133918,0.00084,67062.0,67061.0,1.39700374]
[1721420134128,0.00084,67062.0,67061.0,1.56535331]
[1721420134343,0.00084,67062.0,67061.0,1.56635331]
[1721420134565,0.00084,67062.0,67061.0,1.55235331]
[1721420134787,0.00084,67062.0,67061.0,1.96358831]
[1721420135200,0.00084,67062.0,67061.0,1.66535331]
[1721420135858,0.00084,67062.0,67061.0,2.75358831]
[1721420136062,0.00084,67062.0,67061.0,2.76758831]
[1721420136289,0.00084,67062.0,67061.0,2.76658831]
[1721420136513,0.00084,67062.0,67061.0,2.75358831]
[1721420136725,0.00084,67062.0,67061.0,2.76758831]
[1721420136938,0.00084,67062.0,67061.0,2.76658831]
[1721420137247,0.00084,67062.0,67061.0,2.75758831]
[1721420137679,0.00084,67062.0,67061.0,3.06982331]
[1721420138634,0.00084,67062.0,67061.0,3.06482331]
[1721420139078,0.00084,67062.0,67061.0,3.05082331]
[1721420139312,0.00084,67062.0,67061.0,3.06482331]
[1721420139800,0.00084,67062.0,67061.0,3.05082331]
[1721420140022,0.00084,67062.0,67061.0,3.05582331]
[1721420140257,0.00084,67062.0,67061.0,3.06482331]
[1721420140492,0.00084,67062.0,67061.0,3.07414657]
[1721420140704,0.00084,67062.0,67061.0,3.08814657]
[1721420142533,0.002794,67089.0,67074.0,1.391801]
[1721420142747,0.0633,67090.0,67074.0,2.81128274]
[1721420143865,0.0633,67090.0,67074.0,2.82528274]
[1721420144223,0.0633,67090.0,67074.0,2.82828274]
[1721420144873,0.0633,67090.0,67074.0,3.12646074]
[1721420145070,0.00084,67092.0,67074.0,3.57598831]
[1721420145651,0.00084,67092.0,67074.0,3.56198831]
[1721420146048,0.00084,67092.0,67074.0,3.57598831]
[1721420146601,0.00084,67092.0,67074.0,3.72218831]
[1721420146797,0.00084,67092.0,67074.0,3.71918831]
[1721420147014,0.0663,67090.0,67074.0,2.94363231]
[1721420147221,0.0663,67090.0,67074.0,3.79181031]
[1721420148375,0.00084,67092.0,67074.0,3.79181031]
[1721420148775,0.00084,67092.0,67074.0,4.08998831]
[1721420149181,0.00084,67092.0,67074.0,4.24718831]
[1721420150210,0.00084,67092.0,67074.0,4.25673764]
[1721420150413,0.00084,67092.0,67091.0,1.41593874]
[1721420150618,0.00084,67092.0,67091.0,2.45704074]
[1721420150981,0.00084,67092.0,67091.0,2.55704074]
[1721420151517,0.00084,67092.0,67091.0,2.60704074]
[1721420151727,0.00084,67092.0,67091.0,2.76139031]
[1721420151925,0.0651,67110.0,67109.0,0.447033]
[1721420152128,0.0651,67110.0,67109.0,1.19745874]
[1721420152355,0.0651,67110.0,67109.0,1.01918261]
[1721420153759,0.00837,67111.0,67109.0,1.01918261]
[1721420153760,0.00837,67111.0,67110.0,0.447027]
[1721420153961,0.00837,67111.0,67110.0,0.92242674]
[1721420154389,0.00166938,67112.0,67111.0,1.043045]
[1721420154620,0.00166938,67112.0,67111.0,1.426044]
[1721420155502,0.00166938,67112.0,67111.0,0.359999]
[1721420155703,0.14646938,67112.0,67111.0,0.1]
[1721420155907,0.0601,67111.0,67099.0,0.149032]
[1721420156066,0.0601,67109.0,67100.0,0.34662234]
[1721420156267,0.0601,67109.0,67100.0,1.14662234]
[1721420156510,0.0601,67109.0,67107.0,0.149015]
[1721420156682,0.0601,67109.0,67108.0,0.15438174]
[1721420156908,0.0601,67109.0,67108.0,0.21452461]
[1721420157531,0.0601,67109.0,67108.0,0.95959161]
[1721420158371,0.0601,67109.0,67108.0,0.66156461]
[1721420158628,0.00166938,67112.0,67111.0,0.745032]
[1721420158838,0.00166938,67112.0,67111.0,1.3186824]
[1721420159042,0.00166938,67112.0,67111.0,1.6368824]
[1721420159450,0.0651,67128.0,67117.0,0.744967]
[1721420159668,0.0651,67128.0,67117.0,2.30853574]
[1721420159878,0.0651,67128.0,67117.0,2.46288531]
[1721420160816,0.0651,67128.0,67122.0,1.042874]
[1721420161068,0.0651,67128.0,67122.0,1.22025574]
[1721420161275,0.0651,67128.0,67122.0,2.10025574]
[1721420161471,0.0651,67128.0,67122.0,2.25460531]
[1721420162196,0.00084,67133.0,67122.0,2.33370531]
[1721420162395,0.00084,67133.0,67122.0,1.61420531]
[1721420162589,0.00084,67133.0,67122.0,1.55370531]
[1721420162904,0.00084,67133.0,67122.0,1.48860531]
[1721420163196,0.00084,67133.0,67122.0,1.48960531]
[1721420163854,0.00084,67133.0,67122.0,2.25960531]
[1721420164377,0.00084,67133.0,67122.0,1.19164131]
[1721420164582,0.0662,67124.0,67122.0,0.57271331]
[1721420164789,0.0662,67124.0,67122.0,0.87067731]
[1721420164989,0.0662,67124.0,67122.0,1.16864131]
[1721420165193,0.0662,67124.0,67122.0,0.42373131]
[1721420165394,0.0662,67124.0,67122.0,0.41836374]
[1721420165640,0.0662,67124.0,67122.0,0.26938174]
[1721420165842,0.15038,67123.0,67122.0,0.015]
[1721420166749,0.15038,67123.0,67122.0,0.001]
[1721420167237,0.15038,67123.0,67116.0,0.1]
[1721420167489,0.15038,67123.0,67122.0,0.001]
[1721420168951,0.15038,67123.0,67122.0,0.015]
[1721420170208,0.15038,67123.0,67122.0,0.014]
[1721420170448,0.15438,67123.0,67122.0,0.014]
[1721420171619,0.15438,67123.0,67122.0,0.015]
[1721420171620,0.15838,67123.0,67122.0,0.015]
[1721420174163,0.15838,67123.0,67122.0,0.03193817]
[1721420176137,0.15838,67123.0,67122.0,0.015]
[1721420177476,0.26756388,67123.0,67122.0,0.015]
[1721420177983,0.76450388,67123.0,67122.0,0.015]
[1721420178208,0.932622,67121.0,67120.0,0.000924]
[1721420178411,1.57240238,67121.0,67120.0,0.000924]
[1721420179566,1.72678412,67121.0,67120.0,0.000924]
[1721420180180,1.72678412,67121.0,67103.0,0.4753]
[1721420180181,0.19902,67105.0,67103.0,0.4753]
[1721420180388,0.84024915,67105.0,67103.0,0.4753]
[1721420180591,0.05,67091.0,67084.0,0.4753]
[1721420180817,0.0601,67089.0,67085.0,0.24821661]
[1721420181021,0.15932743,67088.0,67077.0,0.149082]
[1721420181242,0.15932743,67088.0,67078.0,0.31427404]
[1721420181243,0.10969799,67087.0,67078.0,0.31427404]
[1721420181453,0.10969799,67087.0,67078.0,0.25456704]
[1721420181672,0.10969799,67087.0,67084.0,0.005]
[1721420182102,0.05,67088.0,67084.0,0.005]
[1721420182306,0.18694387,67087.0,67084.0,0.005]
[1721420182544,0.10934137,67086.0,67084.0,0.005]
[1721420182769,0.0776,67087.0,67084.0,0.005]
[1721420182973,0.0776,67087.0,67079.0,0.249077]
[1721420183175,0.0786,67087.0,67084.0,0.012]
[1721420184562,0.0906,67087.0,67084.0,0.012]
[1721420184831,0.0906,67087.0,67080.0,0.15438174]
[1721420185458,0.0896,67087.0,67080.0,0.15438174]
[1721420185672,0.0906,67087.0,67080.0,0.15438174]
[1721420186302,0.0896,67087.0,67080.0,0.15438174]
[1721420186528,0.0906,67087.0,67080.0,0.15438174]
[1721420186734,0.0786,67087.0,67080.0,0.15438174]
[1721420186953,0.0906,67087.0,67080.0,0.15438174]
[1721420187373,0.1406,67087.0,67080.0,0.15438174]
[1721420187801,0.1406,67087.0,67081.0,0.03127997]
[1721420188005,0.063,67087.0,67082.0,0.15438174]
[1721420188715,0.062,67087.0,67082.0,0.15438174]
[1721420189217,0.063,67087.0,67082.0,0.15438174]
[1721420189647,0.063,67087.0,67079.0,0.1]
[1721420189648,0.05,67086.0,67079.0,0.1]
[1721420189858,0.05,67083.0,67082.0,0.013]
[1721420190064,0.1162,67083.0,67082.0,0.013]
[1721420191233,0.1222,67083.0,67076.0,0.15438174]
[1721420191638,0.1222,67083.0,67079.0,0.013]
[1721420192187,0.1222,67083.0,67076.0,0.15438174]
[1721420192560,0.1232,67083.0,67076.0,0.24525911]
[1721420192988,0.1232,67083.0,67076.0,0.16738174]
[1721420193373,0.1172,67083.0,67076.0,0.16738174]
[1721420194458,0.1242,67083.0,67076.0,0.16738174]
[1721420194660,0.1172,67083.0,67076.0,0.16738174]
[1721420195062,0.1242,67083.0,67076.0,0.16738174]
[1721420195998,0.05,67081.0,67076.0,0.16738174]
[1721420197699,0.055,67081.0,67076.0,0.16738174]
[1721420198159,0.055,67081.0,67076.0,0.15438174]
[1721420198505,0.056,67081.0,67076.0,0.16738174]
[1721420199346,0.041,67081.0,67077.0,0.03164747]
[1721420199553,0.041,67081.0,67076.0,0.16738174]